fUST/lending_fUST_20250816
["ID","MTS","AMOUNT","RATE_DAILY","PERIOD"]
[379621041,1755347453106,-480.0,0.00022465,3]
[379621042,1755347453115,-480.0,0.00022465,3]
[379621043,1755347453124,-480.0,0.00022465,3]
[379621044,1755347453134,-480.0,0.00022465,3]
[379621045,1755347453143,-480.0,0.00022465,3]
[379621046,1755347453153,-480.0,0.00022465,3]
[379621047,1755347453164,-480.0,0.00022465,3]
[379621048,1755347453173,-480.0,0.00022465,3]
[379621049,1755347453182,-480.0,0.00022465,3]
[379621050,1755347453192,-480.0,0.00022465,3]
[379621051,1755347453201,-480.0,0.00022465,3]
[379621052,1755347453210,-480.0,0.00022465,3]
[379621053,1755347453220,-151.0,0.00022465,7]
[379621054,1755347453229,-151.0,0.00022465,7]
[379621055,1755347453239,-480.0,0.00022465,3]
[379621056,1755347453248,-151.0,0.00022465,7]
[379621057,1755347453257,-480.0,0.00022465,3]
[379621058,1755347453266,-480.0,0.00022465,3]
[379621059,1755347453276,-511.410321,0.00022465,3]
[379621060,1755347453285,-480.0,0.00022465,3]
[379621061,1755347453294,-230.38591391,0.00022465,3]
[379621062,1755347453304,-480.0,0.00022465,3]
[379621063,1755347453314,-480.0,0.00022465,3]
[379621064,1755347453323,-583.64674142,0.00022465,3]
[379621065,1755347453332,-1130.500046,0.00022465,7]
[379621066,1755347453341,-7168.88,0.00022465,3]
[379621067,1755347453351,-1317.3,0.00022465,3]
[379621068,1755347453360,-1130.500046,0.00022465,7]
[379621069,1755347453370,-480.0,0.00022465,3]
[379621070,1755347453379,-480.0,0.00022465,3]
[379621071,1755347453388,-151.231728,0.00022465,7]
[379621072,1755347453398,-151.0,0.00022465,7]
[379621073,1755347453413,-151.0,0.00022465,7]
[379621074,1755347453422,-480.0,0.00022465,3]
[379621075,1755347453431,-750.95,0.00022465,3]
[379621076,1755347453441,-480.0,0.00022465,3]
[379621077,1755347453451,-480.0,0.00022465,3]
[379621078,1755347453460,-480.0,0.00022465,3]
[379621079,1755347453469,-470.7558054,0.00022465,3]
[379621080,1755347453481,-480.0,0.00022465,3]
[379621081,1755347453491,-480.0,0.00022465,3]
[379621082,1755347453500,-480.0,0.00022465,3]
[379621083,1755347453509,-302.94688,0.00022465,7]
[379621084,1755347453518,-480.0,0.00022465,3]
[379621085,1755347453527,-2880.83,0.00022465,3]
[379621086,1755347453536,-480.0,0.00022465,3]
[379621087,1755347453546,-302.94688,0.00022465,7]
[379621088,1755347453555,-1620.5,0.00022465,3]
[379621089,1755347453564,-480.0,0.00022465,3]
[379621090,1755347453573,-2655.77,0.00022465,3]
[379621091,1755347453582,-480.0,0.00022465,3]
[379621092,1755347453591,-480.0,0.00022465,3]
[379621093,1755347453601,-480.0,0.00022465,3]
[379621094,1755347453610,-480.0,0.00022465,3]
[379621095,1755347453619,-1252.72,0.00022465,3]
[379621096,1755347453628,-480.0,0.00022465,3]
[379621097,1755347453638,-480.0,0.00022465,3]
[379621098,1755347453647,-480.0,0.00022465,3]
[379621099,1755347453657,-480.0,0.00022465,3]
[379621100,1755347453669,-480.0,0.00022465,3]
[379621101,1755347453679,-480.0,0.00022465,3]
[379621102,1755347453688,-480.0,0.00022465,3]
[379621103,1755347453698,-480.0,0.00022465,3]
[379621104,1755347453707,-480.0,0.00022465,3]
[379621105,1755347453717,-480.0,0.00022465,3]
[379621106,1755347453727,-480.0,0.00022465,3]
[379621107,1755347453736,-548.08,0.00022465,3]
[379621108,1755347453745,-480.0,0.00022465,3]
[379621109,1755347453756,-480.0,0.00022465,3]
[379621110,1755347453766,-151.0,0.00022465,7]
[379621111,1755347453775,-480.0,0.00022465,3]
[379621112,1755347453786,-480.0,0.00022465,3]
[379621113,1755347453795,-1164.66,0.00022465,3]
[379621114,1755347453806,-258.23249844,0.00022465,3]
[379621115,1755347453815,-480.0,0.00022465,3]
[379621116,1755347453825,-467.53304859,0.00022465,3]
[379621117,1755347453834,-480.0,0.00022465,3]
[379621118,1755347453843,-480.0,0.00022465,3]
[379621119,1755347453853,-480.0,0.00022465,3]
[379621120,1755347453863,-480.0,0.00022465,3]
[379621121,1755347453873,-480.0,0.00022465,3]
[379621122,1755347453884,-480.0,0.00022465,3]
[379621123,1755347453893,-480.0,0.00022465,3]
[379621124,1755347453902,-480.0,0.00022465,3]
[379621125,1755347453914,-5019.98,0.00022465,3]
[379621126,1755347453923,-480.0,0.00022465,3]
[379621127,1755347453933,-297.73469379,0.00022465,3]
[379621128,1755347453942,-480.0,0.00022465,3]
[379621129,1755347453952,-480.0,0.00022465,3]
[379621130,1755347453962,-480.0,0.00022465,3]
[379621131,1755347453971,-480.0,0.00022465,3]
[379621132,1755347453981,-480.0,0.00022465,3]
[379621133,1755347453990,-377.05,0.00022465,3]
[379621134,1755347454000,-534.66,0.00022465,3]
[379621135,1755347454010,-480.0,0.00022465,3]
[379621136,1755347454020,-665.97,0.00022465,3]
[379621137,1755347454030,-462.1417622,0.00022465,7]
[379621138,1755347454041,-202.234014,0.00022465,7]
[379621139,1755347454050,-837.5,0.00022465,3]
[379621140,1755347454060,-151.0,0.00022465,7]
[379621141,1755347454070,-151.0,0.00022465,7]
[379621142,1755347454080,-202.234014,0.00022465,7]
[379621143,1755347454089,-480.0,0.00022465,3]
[379621144,1755347454099,-1309.42,0.00022465,3]
[379621145,1755347454109,-480.0,0.00022465,3]
[379621146,1755347454118,-1181.65,0.00022465,3]
[379621147,1755347454128,-151.0,0.00022465,7]
[379621148,1755347454137,-500.0,0.00022465,3]
[379621149,1755347454146,-567.4,0.00022465,3]
[379621150,1755347454156,-921.78,0.00022465,3]
[379621151,1755347454166,-151.0,0.00022465,7]
[379621152,1755347454175,-551.9,0.00022465,3]
[379621153,1755347454185,-151.0,0.00022465,7]
[379621154,1755347454194,-480.0,0.00022465,3]
[379621155,1755347454203,-1027.33,0.00022465,3]
[379621156,1755347454212,-480.0,0.00022465,3]
[379621157,1755347454221,-1605.97,0.00022465,3]
[379621158,1755347454230,-480.0,0.00022465,3]
[379621159,1755347454240,-480.0,0.00022465,3]
[379621160,1755347454249,-480.0,0.00022465,3]
[379621161,1755347454258,-847.83,0.00022465,3]
[379621162,1755347454267,-480.0,0.00022465,3]
[379621163,1755347454277,-480.0,0.00022465,3]
[379621164,1755347454286,-480.0,0.00022465,3]
[379621165,1755347454295,-480.0,0.00022465,3]
[379621166,1755347454304,-1315.29,0.00022465,3]
[379621167,1755347454313,-1929.72,0.00022465,3]
[379621168,1755347454323,-723.73,0.00022465,3]
[379621169,1755347454332,-2212.27,0.00022465,3]
[379621170,1755347454341,-909.19,0.00022465,3]
[379621171,1755347454351,-480.0,0.00022465,3]
[379621172,1755347454360,-480.0,0.00022465,3]
[379621173,1755347454369,-480.0,0.00022465,3]
[379621174,1755347454378,-909.82,0.00022465,3]
[379621175,1755347454388,-480.0,0.00022465,3]
[379621176,1755347454397,-480.0,0.00022465,3]
[379621177,1755347454406,-480.0,0.00022465,3]
[379621178,1755347454418,-507.77,0.00022465,3]
[379621179,1755347454427,-480.0,0.00022465,3]
[379621180,1755347454436,-480.0,0.00022465,3]
[379621181,1755347454446,-480.0,0.00022465,3]
[379621182,1755347454455,-480.0,0.00022465,3]
[379621183,1755347454465,-480.0,0.00022465,3]
[379621184,1755347454474,-480.0,0.00022465,3]
[379621185,1755347454483,-480.0,0.00022465,3]
[379621186,1755347454492,-480.0,0.00022465,3]
[379621187,1755347454501,-480.0,0.00022465,3]
[379621188,1755347454511,-791.81,0.00022465,3]
[379621189,1755347454520,-480.0,0.00022465,3]
[379621190,1755347454529,-539.22415168,0.00022465,3]
[379621191,1755347454538,-1862.15,0.00022465,3]
[379621192,1755347454547,-480.0,0.00022465,3]
[379621193,1755347454557,-1856.9,0.00022465,3]
[379621194,1755347454567,-962.31,0.00022465,3]
[379621195,1755347454576,-1181.72,0.00022465,3]
[379621196,1755347454586,-480.0,0.00022465,3]
[379621197,1755347454595,-151.0,0.00022465,7]
[379621198,1755347454604,-480.0,0.00022465,2]
[379621199,1755347454613,-480.0,0.00022465,3]
[379621200,1755347454623,-480.0,0.00022465,3]
[379621201,1755347454632,-1134.41,0.00022465,3]
[379621202,1755347454641,-151.0,0.00022465,7]
[379621203,1755347454651,-480.0,0.00022465,3]
[379621204,1755347454663,-480.0,0.00022465,3]
[379621205,1755347454672,-480.0,0.00022465,3]
[379621206,1755347454682,-480.0,0.00022465,3]
[379621207,1755347454691,-480.0,0.00022465,3]
[379621208,1755347454701,-480.0,0.00022465,3]
[379621209,1755347454710,-480.0,0.00022465,3]
[379621210,1755347454720,-480.0,0.00022465,3]
[379621211,1755347454729,-480.0,0.00022465,3]
[379621212,1755347454738,-586.52,0.00022465,3]
[379621213,1755347454748,-556.57,0.00022465,3]
[379621214,1755347454757,-480.0,0.00022465,3]
[379621215,1755347454767,-277.65047291,0.00022465,3]
[379621216,1755347454777,-480.0,0.00022465,3]
[379621217,1755347454786,-480.0,0.00022465,3]
[379621218,1755347454796,-584.11,0.00022465,3]
[379621219,1755347454805,-480.0,0.00022465,3]
[379621220,1755347454814,-480.0,0.00022465,3]
[379621221,1755347454824,-480.0,0.00022465,3]
[379621222,1755347454834,-480.0,0.00022465,3]
[379621223,1755347454843,-2462.76,0.00022465,3]
[379621224,1755347454853,-480.0,0.00022465,3]
[379621225,1755347454862,-480.0,0.00022465,3]
[379621226,1755347454872,-946.87,0.00022465,3]
[379621227,1755347454882,-480.0,0.00022465,3]
[379621228,1755347454891,-8871.61,0.00022465,3]
[379621229,1755347454901,-480.0,0.00022465,3]
[379621230,1755347454910,-529.67515468,0.00022465,3]
[379621231,1755347454923,-480.0,0.00022465,3]
[379621232,1755347454936,-480.0,0.00022465,3]
[379621233,1755347454946,-4573.19,0.00022465,3]
[379621234,1755347454956,-480.0,0.00022465,3]
[379621235,1755347454967,-480.0,0.00022465,3]
[379621236,1755347454976,-480.0,0.00022465,3]
[379621237,1755347454985,-423.99785482,0.00022465,3]
[379621238,1755347454995,-480.0,0.00022465,3]
[379621239,1755347455005,-480.0,0.00022465,3]
[379621240,1755347455130,-151.0,0.00022465,7]
[379621241,1755347455140,-151.0,0.00022465,7]
[379621242,1755347455150,-151.0,0.00022465,7]
[379621243,1755347455159,-1037.56,0.00022465,3]
[379621244,1755347455171,-480.0,0.00022465,3]
[379621245,1755347455181,-1446.85,0.00022465,3]
[379621246,1755347455191,-829.27,0.00022465,3]
[379621247,1755347455199,-750.42,0.00022465,3]
[379621248,1755347455207,-480.0,0.00022465,3]
[379621249,1755347455216,-581.5,0.00022465,3]
[379621250,1755347455226,-13209.52,0.00022465,3]
[379621251,1755347455235,-545.37,0.00022465,3]
[379621252,1755347455245,-480.0,0.00022465,3]
[379621253,1755347455254,-2408.41,0.00022465,3]
[379621254,1755347455263,-480.0,0.00022465,3]
[379621255,1755347455272,-480.0,0.00022465,3]
[379621256,1755347455282,-1310.83,0.00022465,3]
[379621257,1755347455292,-480.0,0.00022465,3]
[379621258,1755347455301,-480.0,0.00022465,3]
[379621259,1755347455311,-480.0,0.00022465,3]
[379621260,1755347455320,-480.0,0.00022465,3]
[379621261,1755347455330,-1333.16,0.00022465,3]
[379621262,1755347455340,-480.0,0.00022465,3]
[379621263,1755347455349,-837.44,0.00022465,3]
[379621264,1755347455359,-3101.46,0.00022465,3]
[379621265,1755347455369,-1955.675544,0.00022465,7]
[379621266,1755347455378,-952.52,0.00022465,3]
[379621267,1755347455388,-9375.88,0.00022465,3]
[379621268,1755347455398,-1955.675544,0.00022465,7]
[379621269,1755347455412,-480.0,0.00022465,3]
[379621270,1755347455422,-480.0,0.00022465,3]
[379621271,1755347455432,-480.0,0.00022465,3]
[379621272,1755347455442,-480.0,0.00022465,3]
[379621273,1755347455452,-788.4,0.00022465,3]
[379621274,1755347455462,-480.0,0.00022465,3]
[379621275,1755347455471,-755.55,0.00022465,3]
[379621276,1755347455483,-480.0,0.00022465,3]
[379621277,1755347455492,-819.77,0.00022465,3]
[379621278,1755347455502,-3747.26,0.00022465,3]
[379621279,1755347455511,-480.0,0.00022465,3]
[379621280,1755347455520,-480.0,0.00022465,3]
[379621281,1755347455530,-480.0,0.00022465,3]
[379621282,1755347455539,-480.0,0.00022465,3]
[379621283,1755347455548,-480.0,0.00022465,3]
[379621284,1755347455558,-480.0,0.00022465,3]
[379621285,1755347455567,-461.67326816,0.00022465,3]
[379621286,1755347455576,-641.377813,0.00022465,7]
[379621287,1755347455585,-480.0,0.00022465,3]
[379621288,1755347455595,-480.0,0.00022465,3]
[379621289,1755347455606,-1233.14,0.00022465,3]
[379621290,1755347455616,-480.0,0.00022465,3]
[379621291,1755347455625,-440.0,0.00022465,3]
[379621292,1755347455635,-641.377813,0.00022465,7]
[379621293,1755347455644,-480.0,0.00022465,3]
[379621294,1755347455654,-480.0,0.00022465,3]
[379621295,1755347455665,-380.0,0.00022465,3]
[379621296,1755347455674,-480.0,0.00022465,3]
[379621297,1755347455684,-670.31,0.00022465,3]
[379621298,1755347455693,-480.0,0.00022465,3]
[379621299,1755347455702,-480.0,0.00022465,3]
[379621300,1755347455711,-421.65,0.00022465,3]
[379621301,1755347455721,-1018.27173056,0.00022473,2]
[379621302,1755347455730,-150.0,0.00022473,2]
[379621303,1755347455739,-166.0,0.00022473,3]
[379621304,1755347455749,-166.0,0.00022473,3]
[379621305,1755347455758,-172.0,0.00022473,3]
[379621306,1755347455767,-556.62684945,0.00022473,3]
[379621307,1755347455776,-314.0,0.00022486,2]
[379621308,1755347455785,-151.0,0.000225,7]
[379621309,1755347455795,-151.0,0.00022507,7]
[379621310,1755347455804,-261.680465,0.00022507,7]
[379621311,1755347455813,-261.680465,0.00022507,7]
[379621312,1755347455823,-151.0,0.00022507,7]
[379621313,1755347455832,-158.087291,0.00022507,7]
[379621314,1755347455841,-1130.500046,0.00022507,7]
[379621315,1755347455851,-1130.500046,0.00022507,7]
[379621316,1755347455860,-153.32251725,0.00022521,2]
[379621317,1755347455870,-153.32251727,0.00022521,2]
[379621318,1755347455880,-500.0,0.00022521,2]
[379621319,1755347455889,-1000.0,0.00022521,2]
[379621320,1755347455898,-500.96625021,0.00022521,2]
[379621321,1755347455908,-1000.0,0.00022521,2]
[379621322,1755347455918,-1002.03201263,0.00022521,2]
[379621323,1755347455928,-1000.0,0.00022521,2]
[379621324,1755347455938,-463.35385499,0.00022521,2]
[379621325,1755347455947,-1000.0,0.00022521,2]
[379621326,1755347455956,-500.0,0.00022521,2]
[379621327,1755347455965,-1000.0,0.00022521,2]
[379621328,1755347455974,-461.66580107,0.00022521,2]
[379621329,1755347455983,-1000.0,0.00022521,2]
[379621330,1755347455993,-1000.0,0.00022521,2]
[379621331,1755347456002,-500.0,0.00022521,2]
[379621332,1755347456012,-500.0,0.00022521,2]
[379621333,1755347456021,-1000.99682678,0.00022521,2]
[379621334,1755347456031,-500.0,0.00022521,2]
[379621335,1755347456040,-1000.0,0.00022521,2]
[379621336,1755347456049,-1000.0,0.00022521,2]
[379621337,1755347456059,-500.31355089,0.00022521,2]
[379621338,1755347456068,-1000.0,0.00022521,2]
[379621339,1755347456077,-1000.0,0.00022521,2]
[379621340,1755347456086,-1000.0,0.00022521,2]
[379621341,1755347456095,-1000.0,0.00022521,2]
[379621342,1755347456105,-1000.0,0.00022521,2]
[379621343,1755347456114,-508.12639967,0.00022521,2]
[379621344,1755347456123,-1000.0,0.00022521,2]
[379621345,1755347456132,-1000.0,0.00022521,2]
[379621346,1755347456142,-200.0,0.0002253,5]
[379621347,1755347456152,-6721.50094195,0.00022539,7]
[379621348,1755347456161,-168.0,0.00022585,2]
[379621349,1755347456172,-168.0,0.00022587,2]
[379621350,1755347456186,-151.0,0.000226,6]
[379621351,1755347456195,-151.0,0.0002261,2]
[379621352,1755347456204,-420.0,0.00022625,2]
[379621353,1755347456214,-884.9,0.00022635,4]
[379621354,1755347456223,-972.0,0.00022645,2]
[379621355,1755347456232,-2152.0,0.00022645,2]
[379621356,1755347456241,-637.0,0.00022645,2]
[379621357,1755347456250,-525.2,0.00022645,2]
[379621358,1755347456261,-528.38334358,0.00022684,2]
[379621359,1755347456270,-153.32251725,0.00022685,2]
[379621360,1755347456279,-151.0,0.000227,5]
[379621361,1755347456289,-810.0,0.000227,5]
[379621362,1755347456298,-669.0,0.00022706,2]
[379621363,1755347456307,-153.0,0.00022712,2]
[379621364,1755347456317,-153.0,0.00022712,2]
[379621365,1755347456326,-153.0,0.00022712,2]
[379621366,1755347456335,-511.410321,0.00022714,5]
[379621367,1755347456345,-5888.0,0.00022719,2]
[379621368,1755347456355,-1000.0,0.00022721,2]
[379621369,1755347456364,-1000.0,0.00022721,2]
[379621370,1755347456374,-1000.0,0.00022721,2]
[379621371,1755347456384,-151.0,0.00022721,2]
[379621372,1755347456393,-462.45777595,0.00022721,2]
[379621373,1755347456405,-263.83488491,0.00022721,2]
[379621374,1755347456417,-151.58884313,0.00022721,2]
[379621375,1755347456426,-210.71251693,0.00022721,2]
[379621376,1755347456435,-604.0,0.00022721,2]
[379621377,1755347456445,-540.87124529,0.00022721,2]
[379621378,1755347456454,-316.79676134,0.00022721,2]
[379621379,1755347456463,-575.41290013,0.00022721,2]
[379621380,1755347456473,-390.92302009,0.00022721,2]
[379621381,1755347456482,-524.32682312,0.00022721,2]
[379621382,1755347456492,-500.0,0.00022721,2]
[379621383,1755347456504,-151.0,0.00022721,2]
[379621384,1755347456513,-160.0,0.00022732,3]
[379621385,1755347456523,-229.499252,0.00022739,7]
[379621386,1755347456532,-229.499252,0.00022739,7]
[379621387,1755347456541,-151.0,0.00022739,7]
[379621388,1755347456551,-167.8,0.00022739,7]
[379621389,1755347456561,-167.8,0.00022739,7]
[379621390,1755347456571,-151.0,0.00022739,7]
[379621391,1755347456580,-151.0,0.00022739,7]
[379621392,1755347456589,-151.0,0.00022739,7]
[379621393,1755347456599,-157.067641,0.00022739,7]
[379621394,1755347456608,-157.067641,0.00022739,7]
[379621395,1755347456617,-162.84842,0.00022739,7]
[379621396,1755347456626,-162.84842,0.00022739,7]
[379621397,1755347456635,-151.0,0.00022739,7]
[379621398,1755347456644,-151.0,0.00022739,7]
[379621399,1755347456653,-151.0,0.00022739,7]
[379621400,1755347456662,-151.0,0.00022739,7]
[379621401,1755347456674,-151.0,0.00022739,7]
[379621402,1755347456684,-1495.369809,0.00022739,7]
[379621403,1755347456693,-1495.369809,0.00022739,7]
[379621404,1755347456702,-151.0,0.00022739,7]
[379621405,1755347456712,-201.431675,0.00022739,7]
[379621406,1755347456721,-201.431675,0.00022739,7]
[379621407,1755347456730,-359.805218,0.00022739,7]
[379621408,1755347456740,-359.805218,0.00022739,7]
[379621409,1755347456749,-268.388311,0.00022739,7]
[379621410,1755347456759,-268.388311,0.00022739,7]
[379621411,1755347456768,-979.07992,0.00022739,7]
[379621412,1755347456777,-979.07992,0.00022739,7]
[379621413,1755347456786,-151.0,0.00022739,7]
[379621414,1755347456795,-151.0,0.00022739,7]
[379621415,1755347456805,-151.0,0.00022739,7]
[379621416,1755347456814,-151.0,0.00022739,7]
[379621417,1755347456823,-196.097691,0.00022739,7]
[379621418,1755347456832,-196.097691,0.00022739,7]
[379621419,1755347456842,-151.0,0.00022739,7]
[379621420,1755347456851,-151.0,0.00022739,7]
[379621421,1755347456860,-151.0,0.00022739,7]
[379621422,1755347456870,-151.0,0.00022739,7]
[379621423,1755347456880,-193.315934,0.00022739,7]
[379621424,1755347456889,-244.557255,0.00022739,7]
[379621425,1755347456899,-193.315934,0.00022739,7]
[379621426,1755347456908,-244.557255,0.00022739,7]
[379621427,1755347456920,-151.0,0.00022739,7]
[379621428,1755347456929,-151.0,0.00022739,7]
[379621429,1755347456938,-252.271257,0.00022739,7]
[379621430,1755347456948,-252.271257,0.00022739,7]
[379621431,1755347456958,-711.310037,0.00022739,7]
[379621432,1755347456968,-711.310037,0.00022739,7]
[379621433,1755347456977,-480.0,0.00022739,3]
[379621434,1755347456987,-480.0,0.00022739,3]
[379621435,1755347456996,-480.0,0.00022739,3]
[379621436,1755347457006,-652.646724,0.00022739,7]
[379621437,1755347457015,-480.0,0.00022739,3]
[379621438,1755347457024,-480.0,0.00022739,3]
[379621439,1755347457034,-652.646724,0.00022739,7]
[379621440,1755347457043,-360.0,0.00022739,3]
[379621441,1755347457053,-480.0,0.00022739,3]
[379621442,1755347457062,-480.0,0.00022739,3]
[379621443,1755347457071,-480.0,0.00022739,3]
[379621444,1755347457080,-480.0,0.00022739,3]
[379621445,1755347457089,-480.0,0.00022739,3]
[379621446,1755347457098,-480.0,0.00022739,3]
[379621447,1755347457107,-480.0,0.00022739,3]
[379621448,1755347457117,-480.0,0.00022739,3]
[379621449,1755347457126,-151.0,0.00022739,7]
[379621450,1755347457136,-480.0,0.00022739,3]
[379621451,1755347457145,-151.0,0.00022739,7]
[379621452,1755347457155,-151.0,0.00022739,7]
[379621453,1755347457165,-151.0,0.00022739,7]
[379621454,1755347457175,-151.0,0.00022739,7]
[379621455,1755347457184,-261.680465,0.00022739,7]
[379621456,1755347457193,-261.680465,0.00022739,7]
[379621457,1755347457202,-480.0,0.00022739,3]
[379621458,1755347457211,-480.0,0.00022739,3]
[379621459,1755347457220,-282.00554594,0.00022739,3]
[379621460,1755347457230,-480.0,0.00022739,3]
[379621461,1755347457239,-480.0,0.00022739,3]
[379621462,1755347457248,-2517.39,0.00022739,3]
[379621463,1755347457257,-480.0,0.00022739,3]
[379621464,1755347457266,-480.0,0.00022739,3]
[379621465,1755347457275,-297.23222568,0.00022739,3]
[379621466,1755347457284,-480.0,0.00022739,3]
[379621467,1755347457295,-488.96,0.00022739,3]
[379621468,1755347457304,-480.0,0.00022739,3]
[379621469,1755347457313,-151.0,0.00022739,7]
[379621470,1755347457322,-480.0,0.00022739,3]
[379621471,1755347457331,-480.0,0.00022739,3]
[379621472,1755347457340,-480.0,0.00022739,3]
[379621473,1755347457457,-480.0,0.00022739,3]
[379621474,1755347457468,-480.0,0.00022739,3]
[379621475,1755347457480,-480.0,0.00022739,3]
[379621476,1755347457489,-977.855157,0.00022739,7]
[379621477,1755347457498,-480.0,0.00022739,3]
[379621478,1755347457507,-977.855157,0.00022739,7]
[379621479,1755347457516,-480.0,0.00022739,3]
[379621480,1755347457526,-436.003215,0.00022739,7]
[379621481,1755347457536,-436.003215,0.00022739,7]
[379621482,1755347457545,-480.0,0.00022739,3]
[379621483,1755347457554,-480.0,0.00022739,3]
[379621484,1755347457563,-480.0,0.00022739,3]
[379621485,1755347457572,-480.0,0.00022739,3]
[379621486,1755347457582,-171.076436,0.00022739,7]
[379621487,1755347457591,-480.0,0.00022739,3]
[379621488,1755347457599,-480.0,0.00022739,3]
[379621489,1755347457609,-480.0,0.00022739,3]
[379621490,1755347457618,-480.0,0.00022739,3]
[379621491,1755347457627,-171.076436,0.00022739,7]
[379621492,1755347457636,-480.0,0.00022739,3]
[379621493,1755347457645,-791.44,0.00022739,3]
[379621494,1755347457655,-262.51580057,0.00022739,3]
[379621495,1755347457665,-480.0,0.00022739,3]
[379621496,1755347457674,-480.0,0.00022739,3]
[379621497,1755347457686,-480.0,0.00022739,3]
[379621498,1755347457695,-154.464507,0.00022739,7]
[379621499,1755347457705,-154.464507,0.00022739,7]
[379621500,1755347457714,-480.0,0.00022739,3]
[379621501,1755347457723,-320.0,0.00022739,3]
[379621502,1755347457732,-380.0,0.00022739,3]
[379621503,1755347457741,-480.0,0.00022739,3]
[379621504,1755347457751,-480.0,0.00022739,3]
[379621505,1755347457761,-534.87,0.00022739,3]
[379621506,1755347457770,-1689.3,0.00022739,3]
[379621507,1755347457779,-813.53,0.00022739,3]
[379621508,1755347457789,-480.0,0.00022739,3]
[379621509,1755347457798,-480.0,0.00022739,3]
[379621510,1755347457808,-956.52,0.00022739,3]
[379621511,1755347457817,-480.0,0.00022739,3]
[379621512,1755347457827,-480.0,0.00022739,3]
[379621513,1755347457836,-480.0,0.00022739,3]
[379621514,1755347457845,-902.926463,0.00022739,7]
[379621515,1755347457856,-480.0,0.00022739,3]
[379621516,1755347457865,-494.66,0.00022739,3]
[379621517,1755347457875,-902.926463,0.00022739,7]
[379621518,1755347457884,-480.0,0.00022739,3]
[379621519,1755347457894,-480.0,0.00022739,3]
[379621520,1755347457903,-151.0,0.00022739,7]
[379621521,1755347457913,-480.0,0.00022739,3]
[379621522,1755347457923,-480.0,0.00022739,3]
[379621523,1755347457932,-748.94,0.00022739,3]
[379621524,1755347457942,-480.0,0.00022739,3]
[379621525,1755347457951,-480.0,0.00022739,3]
[379621526,1755347457961,-480.0,0.00022739,3]
[379621527,1755347457970,-480.0,0.00022739,3]
[379621528,1755347457979,-151.0,0.00022739,7]
[379621529,1755347457989,-480.0,0.00022739,3]
[379621530,1755347457998,-480.0,0.00022739,3]
[379621531,1755347458007,-480.0,0.00022739,3]
[379621532,1755347458017,-604.24,0.00022739,3]
[379621533,1755347458026,-360.0,0.00022739,3]
[379621534,1755347458035,-480.0,0.00022739,3]
[379621535,1755347458045,-480.0,0.00022739,3]
[379621536,1755347458054,-480.0,0.00022739,3]
[379621537,1755347458063,-480.0,0.00022739,3]
[379621538,1755347458073,-480.0,0.00022739,3]
[379621539,1755347458082,-480.0,0.00022739,3]
[379621540,1755347458092,-480.0,0.00022739,3]